Cogmind - Beta 13 @@@ ROGUE MODE // 2024.05.04 @ 17:04:39 Player: Barbarossa Result: Destroyed by S-10 Pest with Light Assault Rifle Performance ------------- Evolutions (1) 500 Regions Visited (2) 400 Robots Destroyed (19) 95 Value Destroyed (380) 380 Prototype IDs (0) 0 Alien Tech Used (0) 0 Bonus (0) 0 TOTAL SCORE: 1375 Bonus ------- None Cogmind --------- Core Integrity 0/400 Matter 300/300 Energy 99/100 System Corruption 0% Temperature Cool (0) Movement Core (50) Location -9/Materials Parts ------- > --- POWER (1) -------- (None) > --- PROPULSION (4) --- (None) > --- UTILITY (2) ------ Signal Interpreter > --- WEAPON (2) ------- (None) > --- INVENTORY (5) ---- Improved Heat Sink Cooling System Medium Laser Assault Rifle Katana Peak State ------------ > --- POWER ------------ Ion Engine > --- PROPULSION ------- Wheel Wheel Flight Unit Flight Unit > --- UTILITY ---------- Improved Heat Sink Small Storage Unit > --- WEAPON ----------- Medium Laser Assault Rifle > --- INVENTORY -------- Light Treads Light Treads Flight Unit Signal Interpreter Medium Laser Assault Rifle [Rating: 11] Favorites ----------- Power Ion Engine Engine Ion Engine Propulsion Flight Unit Leg Aluminum Leg Wheel Wheel Flight Unit Flight Unit Utility Small Storage Unit Device Improved Heat Sink Storage Small Storage Unit Processor Signal Interpreter Weapon Medium Laser Energy Gun Medium Laser Ballistic Gun Assault Rifle Build | -11 -10 -9 ------- Run | Yrd Mat Mat Slots Evolved 2 | . . 2 Power . | . . . Propulsion 2 | . . 2 Utility . | . . . Weapon . | . . . Parts Attached 20 | . 8 12 Power 2 | . 1 1 Engine 2 | . 1 1 Core . | . . . Reactor . | . . . Propulsion 12 | . 4 8 Treads . | . . . Leg 1 | . 1 . Wheel 2 | . 2 . Hover . | . . . Flight 9 | . 1 8 Utility 4 | . 2 2 Device 2 | . 2 . Storage 1 | . . 1 Processor 1 | . . 1 Hackware . | . . . Protection . | . . . Artifact . | . . . Weapon 2 | . 1 1 Energy Gun . | . . . Energy Cannon . | . . . Ballistic Gun 2 | . 1 1 Ballistic Cannon . | . . . Launcher . | . . . Special Weapon . | . . . Impact Weapon . | . . . Slashing Weapon . | . . . Piercing Weapon . | . . . Special Melee Weapon . | . . . Unidentified Prototypes . | . . . Parts Lost 11 | . . 11 Power 1 | . . 1 Propulsion 8 | . . 8 Utility . | . . . Weapon 2 | . . 2 Highest Loss Streak 8 | . . 8 To Critical Strikes . | . . . Average Slot Usage (%) 86 | . 90 82 Engine 11 | . 14 9 Leg 6 | . 12 . Wheel 9 | . 15 2 Flight 16 | . . 33 Device 5 | . 5 5 Storage 9 | . 14 5 Processor 3 | . . 6 Energy Gun 11 | . 14 9 Ballistic Gun 12 | . 14 10 Naked Turns . | . . . Heaviest Build 15 | 14 15 11 Greatest Support 20 | 20 20 16 Greatest Overweight (x) 1 | . 1 1 Average Overweight (x) . | . . . Largest Inventory Capacity 8 | . 8 8 Average Capacity 7 | . 8 6 Most Carried 8 | . 8 7 Average Carried 5 | . 6 4 Final Capacity 8 | 8 8 5 Final Carried 8 | 6 8 5 Class Distribution -------------------- 57% | Mutant 25% | Scavenger-Sprinter 17% | Scavenger-Mutant Dominant Class ---------------- Mutant | -10/Materials Scavenger-Sprinter | -9/Materials Resources | -11 -10 -9 ----------- Run | Yrd Mat Mat Matter Collected 508 | 200 42 266 Remotely . | . . . Salvage Created 581 | . 261 320 Parts 35 | . 14 21 Haulers Intercepted 2 | . 2 . Recyclers Shooed . | . . . Parts Field Recycled . | . . . Retrieved Matter . | . . . Parts Self-Destructed . | . . . Prevented . | . . . Kills | -11 -10 -9 ------- Run | Yrd Mat Mat Combat Hostiles Destroyed 15 | . 5 10 Guns 15 | . 5 10 Classes Destroyed 5 | . 4 1 Hauler 2 | . 2 . Watcher 2 | . 1 1 Swarmer 8 | . 3 5 Grunt 6 | . 2 4 Duelist 1 | . . 1 Best Kill Streak 7 | . 4 7 Combat Bots Only 7 | . 3 7 Max Kills in Single Turn 2 | . 1 2 Gunslinging 1 | . . 1 Exploded . | . . . Melee . | . . . Uniques/NPCs Destroyed . | . . . Combat | -11 -10 -9 -------- Run | Yrd Mat Mat Hostile Shots Fired 134 | . 13 121 Missed 39 | . 3 36 Damage Taken 1031 | . 93 938 Core 419 | . 16 403 Absorbed by Shields . | . . . Core Remaining (%) 96 | 100 93 . Volleys Fired 62 | . 20 42 Largest 2 | . 2 2 Hottest 70 | . 70 70 Shots Fired 117 | . 40 77 Gun 117 | . 40 77 Cannon . | . . . Launcher . | . . . Special . | . . . Kinetic 62 | . 20 42 Thermal 55 | . 20 35 Explosive . | . . . Electromagnetic . | . . . Robot Hit Streak 8 | . 7 8 Robot Miss Streak 7 | . 3 7 Penetration Max . | . . . Secondary Targets 2 | . . 2 Max Gunslinging Chain 1 | . . 1 Shots Hit Robots 73 | . 25 48 Core Hits 31 | . 13 18 Critical Kills . | . . . Critical Parts Destroyed . | . . . Critical Strikes 5 | . 2 3 Burn 5 | . 2 3 Melee Attacks . | . . . Impact . | . . . Slashing . | . . . Piercing . | . . . Sneak Attacks . | . . . Combat Hostiles . | . . . Follow-up Attacks . | . . . Damage Inflicted 891 | . 303 588 Guns 891 | . 303 588 Cannons . | . . . Explosions . | . . . Melee . | . . . Ramming . | . . . Kinetic 427 | . 128 299 Thermal 464 | . 175 289 Explosive . | . . . Electromagnetic . | . . . Impact . | . . . Slashing . | . . . Piercing . | . . . Highest Corruption . | . . . Average Corruption . | . . . Corruption Purged . | . . . Corruption Blocked . | . . . Overload Shots . | . . . Overflow Damage . | . . . Projectiles . | . . . Explosions . | . . . Melee . | . . . Knockbacks . | . . . Impact . | . . . Kinetic . | . . . Secondary . | . . . Self-Inflicted Damage . | . . . Shots . | . . . Rammed . | . . . Targets Rammed . | . . . Kicked . | . . . Crushed . | . . . Highest Temperature 81 | . 54 81 Average Temperature 23 | . 21 25 Received Heat Transfer 192 | . 18 174 Siege Activations . | . . . Robots Corrupted . | . . . Combat Hostiles . | . . . Parts Fried . | . . . Impact Corruptions . | . . . Robots Melted . | . . . Combat Hostiles . | . . . Parts Melted 4 | . 1 3 Heat Transferred 1739 | . 666 1073 Parts Sabotaged . | . . . Parts Stolen . | . . . Parts Stripped . | . . . Power Chain Reactions . | . . . Alert | -11 -10 -9 ------- Run | Yrd Mat Mat Peak Influence 303 | . 156 303 Initial 5 | . . 5 Average 112 | . 48 179 Maximum Alert Level 1 | . . 1 Low Security (%) 75 | . 100 49 Level 1 24 | . . 50 Level 2 . | . . . Level 3 . | . . . Level 4 . | . . . Level 5 . | . . . High Security . | . . . Max Security . | . . . Squads Dispatched 1 | . . 1 Investigation . | . . . Extermination . | . . . Reinforcement 1 | . . 1 Assault . | . . . Garrison . | . . . Intercept . | . . . Searches Triggered . | . . . Construction Impeded . | . . . Haulers Reinforced . | . . . Active Scanning Responses . | . . . Cargo Convoy Interrupts . | . . . Stealth | -11 -10 -9 --------- Run | Yrd Mat Mat Distress Signals 1 | . . 1 Communications Jammed . | . . . Distress Signals . | . . . Times Spotted 38 | . 9 29 Peak Tracking Total 15 | . 5 15 Tactical Retreats 2 | . . 2 Traps | -11 -10 -9 ------- Run | Yrd Mat Mat Traps Triggered . | . . . Indirectly . | . . . Trap Hack Attempts . | . . . Triggered . | . . . Disarmed . | . . . Reprogrammed . | . . . Reused . | . . . Traps Extracted . | . . . Installed . | . . . Triggered . | . . . Machines | -11 -10 -9 ---------- Run | Yrd Mat Mat Machines Disabled . | . . . Max in Single Turn . | . . . Machines Repaired . | . . . Machines Dismantled . | . . . Machines Sabotaged . | . . . Overloaded Fab Kills . | . . . Hacking | -11 -10 -9 --------- Run | Yrd Mat Mat Machines Accessed 8 | . 7 1 Terminals 8 | . 7 1 Fabricators . | . . . Repair Stations . | . . . Recycling Units . | . . . Scanalyzers . | . . . Garrison Access . | . . . Total Hacks 21 | . 19 2 Successful 13 | . 12 1 Failed 8 | . 7 1 Catastrophic . | . . . Database Lockouts . | . . . Manual 17 | . 15 2 Terminals 21 | . 19 2 Fabricators . | . . . Repair Stations . | . . . Recycling Units . | . . . Scanalyzers . | . . . Garrison Access . | . . . Terminal Hacks 5 | . 5 . Terminal Index 1 | . 1 . Unreport Threat 3 | . 3 . Locate Traps 1 | . 1 . Fabricator Hacks . | . . . Repair Station Hacks . | . . . Recycling Unit Hacks . | . . . Scanalyzer . | . . . Garrison Access Hacks . | . . . Unauthorized Hacks 8 | . 7 1 Terminals 8 | . 7 1 Botnet 8 | . 7 1 Fabricators . | . . . Repair Stations . | . . . Recycling Units . | . . . Scanalyzers . | . . . Garrison Access . | . . . Data Cores Recovered . | . . . Used . | . . . Hacking Detections 8 | . 7 1 Full Trace Events . | . . . Feedback Events . | . . . Feedback Blocked . | . . . Robot Schematics Acquired . | . . . Robots Built . | . . . Authchips . | . . . Time . | . . . Total Robot Build Rating . | . . . Part Schematics Acquired . | . . . Parts Built . | . . . Authchips . | . . . Time . | . . . Total Part Build Rating . | . . . Parts Repaired . | . . . Time . | . . . Parts Recycled . | . . . Recycled Matter . | . . . Retrieved Matter . | . . . Retrieved Components . | . . . Parts Scanalyzed . | . . . Part Schematics Acquired . | . . . Parts Damaged . | . . . Bothacking | -11 -10 -9 ------------ Run | Yrd Mat Mat Used RIF Installer . | . . . Robots Hacked . | . . . Non-combat . | . . . Combat . | . . . Robot Hacks Applied . | . . . Relay Couplers Released . | . . . Fabnet Peak Effective % . | . . . Robots Rewired . | . . . Allies Hacked . | . . . Hacks Repelled . | . . . Allies | -11 -10 -9 -------- Run | Yrd Mat Mat Total Allies . | . . . Largest Group . | . . . Highest-Rated Group . | . . . Highest-Rated Ally . | . . . Total Orders . | . . . Ally Attacks . | . . . Total Damage . | . . . Kills . | . . . Allies Corrupted . | . . . Allies Melted . | . . . Intel | -11 -10 -9 ------- Run | Yrd Mat Mat Robot Analysis Total . | . . . Derelict Logs Recovered . | . . . Drone Launches . | . . . Drone Recoveries . | . . . Exploration | -11 -10 -9 ------------- Run | Yrd Mat Mat Turns Passed 569 | . 293 276 Spaces Moved 559 | 1 208 350 Core 29 | . . 29 Treads . | . . . Legs 91 | 1 90 . Wheels 118 | . 118 . Hover . | . . . Flight 321 | . . 321 Fastest Speed 31 | 120 80 31 Average Speed 58 | 120 97 34 Slowest Speed 190 | 120 190 117 Overloaded Moves . | . . . Propulsion Burnouts . | . . . Robots Hopped 8 | . . 8 Cave-ins Triggered . | . . . Exploration Rate (%) 27 | 2 42 39 Regions Visited 2 Branch Regions . Pre-discovered Areas . | . . . Known Exits Taken . | . . . Unknown Exits Taken 2 | 1 1 . Scrap Searched . | . . . Spaces Dug . | . . . Terrain Destroyed . | . . . Melee . | . . . Projectile . | . . . AOE . | . . . Terrain Rammed . | . . . Walls Destroyed . | . . . Machines Disabled . | . . . Actions | -11 -10 -9 --------- Run | Yrd Mat Mat Total 683 | . 257 426 Wait 26 | . 9 17 Move 542 | . 207 335 Hop 7 | . . 7 Pick Up 11 | . 7 4 Fast Attach 5 | . 1 4 Attach 4 | . 1 3 Detach . | . . . Swap 11 | . 6 5 Drop 15 | . 6 9 Fire 62 | . 20 42 Melee . | . . . Ram . | . . . Kick . | . . . Crush . | . . . Escape Stasis . | . . . Rewire . | . . . Trap . | . . . Miscellaneous . | . . . Route ------- -11/Scrapyard -10/Materials (discovered 2 exits: *Mat / [*Min]) -9/Materials (discovered 2 exits: *Min x2) History --------- Turn | Location | Event 1 | -11/Scrapyard | Discovered new exit (range 0) 1 | -11/Scrapyard | Entered Materials 59 | -10/Materials | Discovered new exit (range 12) 240 | -10/Materials | Discovered new exit (range 6) 294 | -10/Materials | Entered another Materials area 294 | -9/Materials | Evolved 2 slots: Propulsion x2 366 | -9/Materials | Destroyed 7 combat bots 410 | -9/Materials | Discovered new exit (range 13) 414 | -9/Materials | Identified exit to Mines 511 | -9/Materials | Discovered exit to Mines (range 16) 540 | -9/Materials | Core integrity fell below 50% 559 | -9/Materials | Core integrity fell below 20% 570 | -9/Materials | Destroyed by S-10 Pest with Light Assault Rifle Last Messages --------------- reinforcements to Terminal M003. 00510_ Connecting with Terminal... 00510_ Current location identified: Materials >>Trojan(Botnet) Trojan loaded successfully. Testing... Terminal linked with 0 systems. Awaiting botnet instructions. 00511_ EXIT=FOUND: MINES 00516_ Acquired Cooling System. 00524_ Flight Unit destroyed. 00533_ S-10 Pest destroyed. 00536_ Acquired 9 matter. 00537_ Acquired Flight Unit. 00538_ Med. Laser destroyed. 00540_ Acquired 1 matter. 00543_ Lgt. Ion Engine destroyed. 00544_ Flight Unit destroyed. 00556_ Lgt. Assault Rifle destroyed. 00556_ Dropped Sml. Storage Unit. Map ----- +----------------------------------------------------+ | ????????????????????????????????????? | | ????????????????????????????????????? | | ????????????????????????????????????? | | ????????????????????????????????????? | | ????????????????????????????????????? | | ??????????????????????????????????? ? | | ??????????????????????????????????? ? | | ??????????????????????????????????? ? | | ??????????????????????????????????? ? | | ?????????????????+#???????????????# ? | | ???????????????? ?????????????### # | | ???????????????? ?????????????# | | ???????????????? ?????????????# | | ???????????????? ??????????????+ | | ???????????????? ??????????????? | | ?###########???? #??????????????? | | ?# #???? #???????????????# | | ?# ##### #????#?????###### | | ?# # #????# ### | | ?# # #????# | | ?# ] # #??????????# | | ?#! + ###????????# ### | | ?# # +????????# !#?# | | ?# # ###????????# #?# | | ?########### ##?????????# #?### | | ??????????# @ s #????????## ##??? | | ??????????# s ########## #??? | | ??????????# ss Y s #??? | | ??????????+ T g T | | ??????????# #### | | ??????????# ##+####### #??? | | ??????????# # ??????###+###??? | | ??????????######### ????????????????? | | ??????????????????# ????????????????? | | ??????????????????#?????????????????? | | ????????????????????????????????????? | | ????????????????????????????????????? | | ????????????????????????????????????? | | ????????????????????????????????????? | | ????????????????????????????????????? | | ????????????????????????????????????? | | ????????????????????????????????????? | | ????????????????????????????????????? | | ????????????????????????????????????? | | ????????????????????????????????????? | | ????????????????????????????????????? | | ????????????????????????????????????? | | ????????????????????????????????????? | | ????????????????????????????????????? | | ????????????????????????????????????? | +----------------------------------------------------+ Best States ------------- Heat Dissipation 42 Energy Generation 10 Energy Capacity 250 Matter Stores 300 Matter Capacity 300 Sight Range 16 Terrain Scan Density 10 Evasion (%) 63 Item Schematics ----------------- None Robot Schematics ------------------ None Fabricated ------------ Nothing Alien Tech Used ----------------- None Achievements -------------- None Challenges ------------ None Game ------ Seed StormHardenedChip Manual? 0 Play Time 00:11:55 Cumulative 149.2 hours Start 2024.05.04 @ 16:53:40 End 2024.05.04 @ 17:04:39 Sessions 1 Manual Loads 0 Difficulty Rogue Special Mode None Game No. 293 Rogue 293 Adventurer 0 Explorer 0 Win Type - Total 0 Types 0/0/0/0/0/0/0/0/0 Lore% 36 Gallery% 49 Achievement% 36 Wizard Run 0 Options --------- Layout 1 ASCII 0 Keyboard 0 Movement Mouse Keybinds 0 Fullscreen 1 Font 24/Smallcaps Map View 50x40 Zoom Use 0% Tactical HUD 1 Map Filters NONE Filters NONE Steam 1 RUN: d04c762c-2cac-4a4a-9491-ad5ba7b7d0d9